[Event "Titled Tuesday Blitz March 08 Early 2022"]
[White "Lewtak, Damian"]
[Black "Maksimovic, Bojan"]
[WhiteFideId "1141724"]
[BlackFideId "14408120"]
[WhiteElo "2362"]
[BlackElo "2448"]
[Result "0-1"]
[Round "01"]
[TimeControl "180+1"]
[Date "2022.03.09"]
[WhiteClock "0:00:36"]
[BlackClock "0:01:28"]

1. d4 {[%clk 0:02:45]}  d5 {[%clk 0:02:59]} 2. c3 {[%clk 0:02:28]}  Bf5 {[%clk 0:02:45]} 3. Nf3 {[%clk 0:02:28]}  e6 {[%clk 0:02:43]} 4. Bf4 {[%clk 0:02:28]}  Bd6 {[%clk 0:02:43]} 5. Bxd6 {[%clk 0:02:25]}  cxd6 {[%clk 0:02:43]} 6. e3 {[%clk 0:02:25]}  Nf6 {[%clk 0:02:43]} 7. Nbd2 {[%clk 0:02:22]}  O-O {[%clk 0:02:42]} 8. Be2 {[%clk 0:02:21]}  Qb6 {[%clk 0:02:42]} 9. Qb3 {[%clk 0:02:21]}  Nbd7 {[%clk 0:02:33]} 10. Qxb6 {[%clk 0:02:20]}  Nxb6 {[%clk 0:02:33]} 11. Nh4 {[%clk 0:02:15]}  Be4 {[%clk 0:02:31]} 12. f3 {[%clk 0:02:15]}  Bg6 {[%clk 0:02:25]} 13. Nxg6 {[%clk 0:02:15]}  hxg6 {[%clk 0:02:26]} 14. f4 {[%clk 0:01:38]}  Na4 {[%clk 0:02:21]} 15. Rb1 {[%clk 0:01:35]}  a6 {[%clk 0:02:21]} 16. g4 {[%clk 0:01:27]}  Rfe8 {[%clk 0:02:17]} 17. g5 {[%clk 0:01:27]}  Nd7 {[%clk 0:02:17]} 18. h4 {[%clk 0:01:27]}  e5 {[%clk 0:02:14]} 19. Kf2 {[%clk 0:01:25]}  b5 {[%clk 0:02:14]} 20. h5 {[%clk 0:01:25]}  gxh5 {[%clk 0:02:12]} 21. Rxh5 {[%clk 0:01:26]}  g6 {[%clk 0:02:11]} 22. Rh6 {[%clk 0:01:23]}  Kg7 {[%clk 0:02:11]} 23. Nb3 {[%clk 0:01:17]}  Rh8 {[%clk 0:02:08]} 24. Rxh8 {[%clk 0:01:14]}  Rxh8 {[%clk 0:02:09]} 25. Kg3 {[%clk 0:01:13]}  f6 {[%clk 0:01:58]} 26. Na5 {[%clk 0:01:03]}  exf4+ {[%clk 0:01:42]} 27. exf4 {[%clk 0:01:02]}  fxg5 {[%clk 0:01:43]} 28. fxg5 {[%clk 0:01:02]}  Nf8 {[%clk 0:01:44]} 29. Bg4 {[%clk 0:00:59]}  Nh7 {[%clk 0:01:40]} 30. Nb7 {[%clk 0:00:43]}  Nxg5 {[%clk 0:01:38]} 31. Nxd6 {[%clk 0:00:42]}  Rd8 {[%clk 0:01:37]} 32. Nb7 {[%clk 0:00:42]}  Ne4+ {[%clk 0:01:37]} 33. Kg2 {[%clk 0:00:36]}  Rf8 {[%clk 0:01:29]} 34. Bf3 {[%clk 0:00:36]}  Rxf3 {[%clk 0:01:28]} 0-1


[Site "https://www.chess.com"]

[Event "Titled Tuesday Blitz March 08 Early 2022"]
[White "Li, Hui"]
[Black "Bashirli, Nail"]
[WhiteFideId "15400310"]
[BlackFideId "13406809"]
[WhiteElo "1954"]
[BlackElo "2333"]
[Result "0-1"]
[Round "01"]
[TimeControl "180+1"]
[Date "2022.03.09"]
[WhiteClock "0:00:05"]
[BlackClock "0:00:54"]

1. e4 {[%clk 0:02:51]}  Nf6 {[%clk 0:02:58]} 2. e5 {[%clk 0:02:50]}  Nd5 {[%clk 0:02:55]} 3. d4 {[%clk 0:02:51]}  d6 {[%clk 0:02:55]} 4. Nf3 {[%clk 0:02:50]}  Nb6 {[%clk 0:02:54]} 5. Bd3 {[%clk 0:02:43]}  g6 {[%clk 0:02:50]} 6. O-O {[%clk 0:02:39]}  Bg7 {[%clk 0:02:50]} 7. Qe2 {[%clk 0:02:32]}  O-O {[%clk 0:02:50]} 8. h3 {[%clk 0:02:26]}  Nc6 {[%clk 0:02:46]} 9. exd6 {[%clk 0:02:14]}  cxd6 {[%clk 0:02:39]} 10. c3 {[%clk 0:02:12]}  Qc7 {[%clk 0:02:30]} 11. Bg5 {[%clk 0:02:05]}  h6 {[%clk 0:02:29]} 12. Be3 {[%clk 0:02:04]}  Re8 {[%clk 0:02:29]} 13. Na3 {[%clk 0:01:59]}  a6 {[%clk 0:02:28]} 14. Qd2 {[%clk 0:01:37]}  Kh7 {[%clk 0:02:18]} 15. Bf4 {[%clk 0:01:26]}  Nd5 {[%clk 0:02:12]} 16. Bg3 {[%clk 0:01:25]}  b5 {[%clk 0:02:10]} 17. Rfe1 {[%clk 0:01:16]}  Rb8 {[%clk 0:01:57]} 18. Nc2 {[%clk 0:01:16]}  Bf5 {[%clk 0:01:44]} 19. Ne3 {[%clk 0:01:03]}  Nxe3 {[%clk 0:01:40]} 20. fxe3 {[%clk 0:00:57]}  Bxd3 {[%clk 0:01:39]} 21. Qxd3 {[%clk 0:00:58]}  Qd7 {[%clk 0:01:40]} 22. e4 {[%clk 0:00:57]}  b4 {[%clk 0:01:38]} 23. Qxa6 {[%clk 0:00:47]}  Rec8 {[%clk 0:01:26]} 24. Rad1 {[%clk 0:00:38]}  Ra8 {[%clk 0:01:25]} 25. Qc4 {[%clk 0:00:33]}  e6 {[%clk 0:01:23]} 26. Qb3 {[%clk 0:00:30]}  bxc3 {[%clk 0:01:23]} 27. bxc3 {[%clk 0:00:30]}  Na5 {[%clk 0:01:23]} 28. Qc2 {[%clk 0:00:30]}  Nc4 {[%clk 0:01:23]} 29. e5 {[%clk 0:00:26]}  dxe5 {[%clk 0:01:21]} 30. Nxe5 {[%clk 0:00:25]}  Nxe5 {[%clk 0:01:20]} 31. Bxe5 {[%clk 0:00:25]}  Ra3 {[%clk 0:01:13]} 32. Bxg7 {[%clk 0:00:25]}  Kxg7 {[%clk 0:01:14]} 33. Re3 {[%clk 0:00:24]}  Qd5 {[%clk 0:01:06]} 34. Rd2 {[%clk 0:00:22]}  Qa5 {[%clk 0:01:01]} 35. Rf2 {[%clk 0:00:17]}  Raxc3 {[%clk 0:01:00]} 36. Rxc3 {[%clk 0:00:18]}  Rxc3 {[%clk 0:01:01]} 37. Qd2 {[%clk 0:00:18]}  Qc7 {[%clk 0:01:00]} 38. Qf4 {[%clk 0:00:17]}  Rc1+ {[%clk 0:00:57]} 39. Kh2 {[%clk 0:00:16]}  Qxf4+ {[%clk 0:00:57]} 40. Rxf4 {[%clk 0:00:17]}  Rc2 {[%clk 0:00:55]} 41. a3 {[%clk 0:00:16]}  Rc4 {[%clk 0:00:56]} 42. Kg3 {[%clk 0:00:15]}  Ra4 {[%clk 0:00:55]} 43. Rf3 {[%clk 0:00:13]}  Rxd4 {[%clk 0:00:55]} 44. Kf2 {[%clk 0:00:12]}  e5 {[%clk 0:00:54]} 45. Rb3 {[%clk 0:00:12]}  f5 {[%clk 0:00:53]} 46. Rb2 {[%clk 0:00:12]}  Kf6 {[%clk 0:00:54]} 47. Ra2 {[%clk 0:00:12]}  Ra4 {[%clk 0:00:53]} 48. Ke3 {[%clk 0:00:13]}  e4 {[%clk 0:00:54]} 49. g3 {[%clk 0:00:12]}  Ke5 {[%clk 0:00:55]} 50. Ra1 {[%clk 0:00:12]}  g5 {[%clk 0:00:55]} 51. Ra2 {[%clk 0:00:11]}  f4+ {[%clk 0:00:56]} 52. gxf4+ {[%clk 0:00:12]}  gxf4+ {[%clk 0:00:57]} 53. Kd2 {[%clk 0:00:13]}  Kd4 {[%clk 0:00:57]} 54. Ke2 {[%clk 0:00:12]}  f3+ {[%clk 0:00:57]} 55. Kf2 {[%clk 0:00:10]}  Kd3 {[%clk 0:00:58]} 56. Ra1 {[%clk 0:00:10]}  Kd2 {[%clk 0:00:57]} 57. Ra2+ {[%clk 0:00:10]}  Kd3 {[%clk 0:00:58]} 58. Ra1 {[%clk 0:00:11]}  Kd4 {[%clk 0:00:54]} 59. Rd1+ {[%clk 0:00:10]}  Ke5 {[%clk 0:00:54]} 60. Ra1 {[%clk 0:00:10]}  Kf4 {[%clk 0:00:55]} 61. Ra2 {[%clk 0:00:09]}  h5 {[%clk 0:00:55]} 62. Ke1 {[%clk 0:00:10]}  Ke3 {[%clk 0:00:54]} 63. h4 {[%clk 0:00:09]}  Ra8 {[%clk 0:00:54]} 64. a4 {[%clk 0:00:07]}  f2+ {[%clk 0:00:53]} 65. Rxf2 {[%clk 0:00:05]}  Rxa4 {[%clk 0:00:53]} 66. Re2+ {[%clk 0:00:05]}  Kf3 {[%clk 0:00:54]} 67. Rf2+ {[%clk 0:00:06]}  Kg3 {[%clk 0:00:54]} 68. Rf5 {[%clk 0:00:05]}  Kxh4 {[%clk 0:00:54]} 69. Ke2 {[%clk 0:00:06]}  Kg4 {[%clk 0:00:55]} 70. Rf8 {[%clk 0:00:06]}  h4 {[%clk 0:00:55]} 71. Rg8+ {[%clk 0:00:07]}  Kf4 {[%clk 0:00:56]} 72. Rf8+ {[%clk 0:00:07]}  Kg3 {[%clk 0:00:56]} 73. Rg8+ {[%clk 0:00:07]}  Kh2 {[%clk 0:00:57]} 74. Ke3 {[%clk 0:00:06]}  h3 {[%clk 0:00:57]} 75. Rh8 {[%clk 0:00:05]}  Kg2 {[%clk 0:00:57]} 76. Rg8+ {[%clk 0:00:06]}  Kf1 {[%clk 0:00:58]} 77. Rh8 {[%clk 0:00:05]}  Ke1 {[%clk 0:00:54]} 78. Rxh3 {[%clk 0:00:05]}  Ra3+ {[%clk 0:00:54]} 0-1


[Site "https://www.chess.com"]

[Event "Titled Tuesday Blitz March 08 Early 2022"]
[White "Lopez Del Alamo, Antonio"]
[Black "Hua, Lefong"]
[WhiteFideId "2227339"]
[BlackFideId "2602253"]
[WhiteElo "2082"]
[BlackElo "2608"]
[Result "0-1"]
[Round "01"]
[TimeControl "180+1"]
[Date "2022.03.09"]
[WhiteClock "0:00:34"]
[BlackClock "0:01:56"]

1. e4 {[%clk 0:02:59]}  c5 {[%clk 0:02:59]} 2. Nf3 {[%clk 0:02:54]}  g6 {[%clk 0:02:59]} 3. d4 {[%clk 0:02:45]}  cxd4 {[%clk 0:03:00]} 4. Nxd4 {[%clk 0:02:45]}  Bg7 {[%clk 0:03:00]} 5. c4 {[%clk 0:02:45]}  Nc6 {[%clk 0:03:00]} 6. Be3 {[%clk 0:02:45]}  Nf6 {[%clk 0:03:01]} 7. Nc3 {[%clk 0:02:45]}  Ng4 {[%clk 0:03:01]} 8. Qxg4 {[%clk 0:02:42]}  Nxd4 {[%clk 0:03:01]} 9. Qd1 {[%clk 0:02:41]}  e5 {[%clk 0:03:01]} 10. Bd3 {[%clk 0:02:37]}  O-O {[%clk 0:03:00]} 11. O-O {[%clk 0:02:36]}  d6 {[%clk 0:03:00]} 12. Nd5 {[%clk 0:02:16]}  Be6 {[%clk 0:02:58]} 13. Qa4 {[%clk 0:02:04]}  a6 {[%clk 0:02:53]} 14. Bxd4 {[%clk 0:01:55]}  exd4 {[%clk 0:02:53]} 15. Qb3 {[%clk 0:01:55]}  Bxd5 {[%clk 0:02:46]} 16. cxd5 {[%clk 0:01:50]}  Qd7 {[%clk 0:02:45]} 17. Rac1 {[%clk 0:01:46]}  Rac8 {[%clk 0:02:45]} 18. f3 {[%clk 0:01:30]}  Bh6 {[%clk 0:02:43]} 19. f4 {[%clk 0:01:27]}  Bxf4 {[%clk 0:02:27]} 20. Rxc8 {[%clk 0:01:19]}  Be3+ {[%clk 0:02:27]} 21. Kh1 {[%clk 0:01:19]}  Rxc8 {[%clk 0:02:27]} 22. h3 {[%clk 0:01:11]}  Qe7 {[%clk 0:02:27]} 23. Qb6 {[%clk 0:01:03]}  Kg7 {[%clk 0:02:23]} 24. a4 {[%clk 0:01:01]}  Rd8 {[%clk 0:02:06]} 25. e5 {[%clk 0:00:44]}  dxe5 {[%clk 0:02:01]} 26. d6 {[%clk 0:00:34]}  Rxd6 {[%clk 0:02:00]} 27. Qc5 {[%clk 0:00:34]}  Rd7 {[%clk 0:01:57]} 28. Bc4 {[%clk 0:00:34]}  Qxc5 {[%clk 0:01:56]} 0-1


[Site "https://www.chess.com"]

[Event "Titled Tuesday Blitz March 08 Early 2022"]
[White "Lopez Gracia, Fernando"]
[Black "Daneshvar, Bardiya"]
[WhiteFideId "2207184"]
[BlackFideId "12576468"]
[WhiteElo "2431"]
[BlackElo "2295"]
[Result "0-1"]
[Round "01"]
[TimeControl "180+1"]
[Date "2022.03.09"]
[WhiteClock "0:01:53"]
[BlackClock "0:02:30"]

1. c4 {[%clk 0:02:49]}  a6 {[%clk 0:02:59]} 2. e4 {[%clk 0:02:47]}  h6 {[%clk 0:03:00]} 3. Nf3 {[%clk 0:02:46]}  e6 {[%clk 0:03:00]} 4. d4 {[%clk 0:02:46]}  g5 {[%clk 0:03:00]} 5. h3 {[%clk 0:02:45]}  Bg7 {[%clk 0:03:01]} 6. Nc3 {[%clk 0:02:45]}  Ne7 {[%clk 0:03:01]} 7. Be2 {[%clk 0:02:44]}  d6 {[%clk 0:03:02]} 8. O-O {[%clk 0:02:44]}  Ng6 {[%clk 0:03:00]} 9. Nh2 {[%clk 0:02:40]}  Nf4 {[%clk 0:03:00]} 10. Bxf4 {[%clk 0:02:39]}  gxf4 {[%clk 0:03:01]} 11. Bh5 {[%clk 0:02:36]}  Qh4 {[%clk 0:02:55]} 12. Qg4 {[%clk 0:02:32]}  Qxg4 {[%clk 0:02:54]} 13. Bxg4 {[%clk 0:02:32]}  Bxd4 {[%clk 0:02:52]} 14. Ne2 {[%clk 0:02:32]}  Bxb2 {[%clk 0:02:52]} 15. Rab1 {[%clk 0:02:32]}  Be5 {[%clk 0:02:52]} 16. Nf3 {[%clk 0:02:32]}  c5 {[%clk 0:02:51]} 17. Nxe5 {[%clk 0:02:25]}  dxe5 {[%clk 0:02:52]} 18. Nc1 {[%clk 0:02:25]}  Nd7 {[%clk 0:02:39]} 19. Bd1 {[%clk 0:02:22]}  Ke7 {[%clk 0:02:37]} 20. Ba4 {[%clk 0:02:21]}  Nf6 {[%clk 0:02:37]} 21. f3 {[%clk 0:02:18]}  Rd8 {[%clk 0:02:37]} 22. Rd1 {[%clk 0:02:14]}  Rd4 {[%clk 0:02:36]} 23. Nd3 {[%clk 0:02:12]}  Rxc4 {[%clk 0:02:36]} 24. Bb3 {[%clk 0:02:09]}  Rc3 {[%clk 0:02:34]} 25. Nxe5 {[%clk 0:02:08]}  Nd7 {[%clk 0:02:34]} 26. Nc4 {[%clk 0:01:53]}  b5 {[%clk 0:02:32]} 27. Nd6 {[%clk 0:01:53]}  c4 {[%clk 0:02:30]} 0-1


[Site "https://www.chess.com"]

[Event "Titled Tuesday Blitz March 08 Early 2022"]
[White "Madaminov, Mukhiddin"]
[Black "Rudzinska, Michalina"]
[WhiteFideId "14210703"]
[BlackFideId "1172883"]
[WhiteElo "1916"]
[BlackElo "1904"]
[Result "1-0"]
[Round "01"]
[TimeControl "180+1"]
[Date "2022.03.09"]
[WhiteClock "0:00:15"]
[BlackClock "0:00:19"]

1. d4 {[%clk 0:02:58]}  Nf6 {[%clk 0:02:58]} 2. Nc3 {[%clk 0:02:59]}  c5 {[%clk 0:02:56]} 3. d5 {[%clk 0:02:59]}  d6 {[%clk 0:02:56]} 4. e4 {[%clk 0:03:00]}  g6 {[%clk 0:02:56]} 5. f4 {[%clk 0:03:00]}  Bg7 {[%clk 0:02:56]} 6. Bb5+ {[%clk 0:03:01]}  Nfd7 {[%clk 0:02:56]} 7. e5 {[%clk 0:03:01]}  dxe5 {[%clk 0:02:55]} 8. fxe5 {[%clk 0:02:56]}  Bxe5 {[%clk 0:02:55]} 9. Nf3 {[%clk 0:02:57]}  Bg7 {[%clk 0:02:55]} 10. O-O {[%clk 0:02:55]}  O-O {[%clk 0:02:54]} 11. a4 {[%clk 0:02:47]}  Na6 {[%clk 0:02:49]} 12. Bf4 {[%clk 0:02:35]}  Nb4 {[%clk 0:02:48]} 13. Qd2 {[%clk 0:02:32]}  a6 {[%clk 0:02:48]} 14. Be2 {[%clk 0:02:29]}  Nf6 {[%clk 0:02:47]} 15. Rad1 {[%clk 0:02:30]}  Bf5 {[%clk 0:02:47]} 16. Ne1 {[%clk 0:02:14]}  Nbxd5 {[%clk 0:02:38]} 17. Nxd5 {[%clk 0:02:13]}  Ne4 {[%clk 0:02:32]} 18. Qc1 {[%clk 0:01:54]}  Bd4+ {[%clk 0:02:31]} 19. Ne3 {[%clk 0:01:47]}  e5 {[%clk 0:02:17]} 20. Bh6 {[%clk 0:01:47]}  Qh4 {[%clk 0:01:55]} 21. Bxf8 {[%clk 0:01:43]}  Qg5 {[%clk 0:01:47]} 22. Rf3 {[%clk 0:01:13]}  Bg4 {[%clk 0:01:46]} 23. h4 {[%clk 0:00:51]}  Qxh4 {[%clk 0:01:44]} 24. Rxd4 {[%clk 0:00:37]}  Bxf3 {[%clk 0:01:28]} 25. Rxe4 {[%clk 0:00:31]}  Bxe4 {[%clk 0:01:27]} 26. Bxc5 {[%clk 0:00:31]}  Rc8 {[%clk 0:01:24]} 27. b4 {[%clk 0:00:30]}  f5 {[%clk 0:01:22]} 28. Bc4+ {[%clk 0:00:28]}  Kg7 {[%clk 0:01:21]} 29. Qd2 {[%clk 0:00:27]}  f4 {[%clk 0:01:14]} 30. Qd7+ {[%clk 0:00:21]}  Kh6 {[%clk 0:01:14]} 31. Ng4+ {[%clk 0:00:21]}  Kh5 {[%clk 0:01:08]} 32. Qxh7+ {[%clk 0:00:20]}  Kxg4 {[%clk 0:01:06]} 33. Be6+ {[%clk 0:00:21]}  Bf5 {[%clk 0:01:06]} 34. Qxh4+ {[%clk 0:00:22]}  Kxh4 {[%clk 0:01:06]} 35. Bxc8 {[%clk 0:00:23]}  Bxc8 {[%clk 0:01:06]} 36. Nf3+ {[%clk 0:00:23]}  Kg4 {[%clk 0:01:01]} 37. Nxe5+ {[%clk 0:00:24]}  Kf5 {[%clk 0:01:02]} 38. Nc4 {[%clk 0:00:25]}  Bd7 {[%clk 0:00:59]} 39. Nd6+ {[%clk 0:00:25]}  Ke5 {[%clk 0:00:58]} 40. a5 {[%clk 0:00:22]}  Bc6 {[%clk 0:00:58]} 41. Kf2 {[%clk 0:00:23]}  g5 {[%clk 0:00:56]} 42. g3 {[%clk 0:00:18]}  g4 {[%clk 0:00:55]} 43. Nc4+ {[%clk 0:00:07]}  Kf5 {[%clk 0:00:51]} 44. gxf4 {[%clk 0:00:07]}  Kxf4 {[%clk 0:00:50]} 45. Bd6+ {[%clk 0:00:08]}  Ke4 {[%clk 0:00:50]} 46. Kg3 {[%clk 0:00:08]}  Kd4 {[%clk 0:00:49]} 47. Nb6 {[%clk 0:00:08]}  Kc3 {[%clk 0:00:49]} 48. Kxg4 {[%clk 0:00:08]}  Kxc2 {[%clk 0:00:49]} 49. Kf5 {[%clk 0:00:08]}  Kc3 {[%clk 0:00:49]} 50. Bc5 {[%clk 0:00:09]}  Bf3 {[%clk 0:00:47]} 51. Ke6 {[%clk 0:00:10]}  Bc6 {[%clk 0:00:47]} 52. Kd6 {[%clk 0:00:10]}  Bf3 {[%clk 0:00:47]} 53. Kc7 {[%clk 0:00:11]}  Bc6 {[%clk 0:00:46]} 54. Nc8 {[%clk 0:00:12]}  Kc4 {[%clk 0:00:46]} 55. Kb6 {[%clk 0:00:12]}  Bg2 {[%clk 0:00:39]} 56. Nd6+ {[%clk 0:00:13]}  Kb3 {[%clk 0:00:35]} 57. Nxb7 {[%clk 0:00:14]}  Bf1 {[%clk 0:00:34]} 58. Nd8 {[%clk 0:00:10]}  Kc4 {[%clk 0:00:29]} 59. Nc6 {[%clk 0:00:11]}  Kd5 {[%clk 0:00:28]} 60. Nb8 {[%clk 0:00:12]}  Ke6 {[%clk 0:00:28]} 61. Nxa6 {[%clk 0:00:13]}  Kd7 {[%clk 0:00:29]} 62. Kb7 {[%clk 0:00:13]}  Bg2+ {[%clk 0:00:28]} 63. Kb8 {[%clk 0:00:12]}  Bf1 {[%clk 0:00:28]} 64. Nc7 {[%clk 0:00:13]}  Kc6 {[%clk 0:00:27]} 65. a6 {[%clk 0:00:13]}  Bxa6 {[%clk 0:00:19]} 66. Nxa6 {[%clk 0:00:13]}  Kb5 {[%clk 0:00:19]} 67. Kb7 {[%clk 0:00:14]}  Ka4 {[%clk 0:00:19]} 68. Kc6 {[%clk 0:00:15]} 1-0


[Site "https://www.chess.com"]

[Event "Titled Tuesday Blitz March 08 Early 2022"]
[White "Manukyan, Sargis A."]
[Black "Mohammadian, Mohammad"]
[WhiteFideId "13303970"]
[BlackFideId "12566055"]
[WhiteElo "2187"]
[BlackElo "1544"]
[Result "1-0"]
[Round "01"]
[TimeControl "180+1"]
[Date "2022.03.09"]
[WhiteClock "0:01:55"]
[BlackClock "0:00:01"]

1. d4 {[%clk 0:02:59]}  Nf6 {[%clk 0:02:58]} 2. c4 {[%clk 0:02:59]}  g6 {[%clk 0:02:58]} 3. Nc3 {[%clk 0:02:59]}  d5 {[%clk 0:02:57]} 4. cxd5 {[%clk 0:02:55]}  Nxd5 {[%clk 0:02:56]} 5. e4 {[%clk 0:02:56]}  Nxc3 {[%clk 0:02:55]} 6. bxc3 {[%clk 0:02:57]}  Bg7 {[%clk 0:02:49]} 7. Nf3 {[%clk 0:02:57]}  c5 {[%clk 0:02:49]} 8. Rb1 {[%clk 0:02:57]}  Nc6 {[%clk 0:02:47]} 9. Be3 {[%clk 0:02:55]}  b6 {[%clk 0:02:33]} 10. Be2 {[%clk 0:02:53]}  Bg4 {[%clk 0:02:31]} 11. e5 {[%clk 0:02:47]}  Rb8 {[%clk 0:02:19]} 12. O-O {[%clk 0:02:46]}  cxd4 {[%clk 0:02:14]} 13. cxd4 {[%clk 0:02:44]}  O-O {[%clk 0:02:00]} 14. Rc1 {[%clk 0:02:36]}  Rc8 {[%clk 0:01:56]} 15. Qa4 {[%clk 0:02:34]}  Bd7 {[%clk 0:01:48]} 16. Bb5 {[%clk 0:02:31]}  Nb8 {[%clk 0:01:34]} 17. Rxc8 {[%clk 0:02:20]}  Qxc8 {[%clk 0:01:27]} 18. Rc1 {[%clk 0:02:18]}  Qd8 {[%clk 0:01:26]} 19. Bxd7 {[%clk 0:02:15]}  Nxd7 {[%clk 0:01:17]} 20. Qxa7 {[%clk 0:02:14]}  e6 {[%clk 0:01:01]} 21. h4 {[%clk 0:02:08]}  h5 {[%clk 0:01:00]} 22. Rc7 {[%clk 0:02:06]}  Nxe5 {[%clk 0:00:26]} 23. dxe5 {[%clk 0:02:03]}  Qd1+ {[%clk 0:00:23]} 24. Kh2 {[%clk 0:02:02]}  Qd5 {[%clk 0:00:12]} 25. Bf4 {[%clk 0:01:55]}  Qe4 {[%clk 0:00:01]} 26. Bg3 {[%clk 0:01:55]} 1-0


[Site "https://www.chess.com"]

[Event "Titled Tuesday Blitz March 08 Early 2022"]
[White "Martin Duque, Jesus"]
[Black "parintele_chess"]
[WhiteFideId "2208954"]
[WhiteElo "2243"]
[BlackElo "2201"]
[Result "1-0"]
[Round "01"]
[TimeControl "180+1"]
[Date "2022.03.09"]
[WhiteClock "0:00:55"]
[BlackClock "0:00:07"]

1. Nf3 {[%clk 0:02:58]}  Nf6 {[%clk 0:02:58]} 2. b3 {[%clk 0:02:50]}  g6 {[%clk 0:02:56]} 3. Bb2 {[%clk 0:02:50]}  Bg7 {[%clk 0:02:56]} 4. g3 {[%clk 0:02:51]}  b6 {[%clk 0:02:54]} 5. Bg2 {[%clk 0:02:52]}  Bb7 {[%clk 0:02:54]} 6. O-O {[%clk 0:02:53]}  O-O {[%clk 0:02:51]} 7. e3 {[%clk 0:02:53]}  d6 {[%clk 0:02:46]} 8. d4 {[%clk 0:02:53]}  Nbd7 {[%clk 0:02:46]} 9. c4 {[%clk 0:02:53]}  Re8 {[%clk 0:02:36]} 10. Qc2 {[%clk 0:02:53]}  Be4 {[%clk 0:02:33]} 11. Qc1 {[%clk 0:02:53]}  e5 {[%clk 0:02:30]} 12. Nc3 {[%clk 0:02:47]}  Bb7 {[%clk 0:02:17]} 13. dxe5 {[%clk 0:02:16]}  dxe5 {[%clk 0:02:03]} 14. Rd1 {[%clk 0:02:16]}  Qe7 {[%clk 0:01:59]} 15. Nxe5 {[%clk 0:02:07]}  Bxg2 {[%clk 0:01:55]} 16. Nxd7 {[%clk 0:02:07]}  Bf3 {[%clk 0:01:45]} 17. Nxf6+ {[%clk 0:02:06]}  Bxf6 {[%clk 0:01:46]} 18. Nd5 {[%clk 0:02:05]}  Bxd5 {[%clk 0:01:45]} 19. cxd5 {[%clk 0:01:59]}  Rad8 {[%clk 0:01:41]} 20. Bxf6 {[%clk 0:01:53]}  Qxf6 {[%clk 0:01:42]} 21. Qxc7 {[%clk 0:01:53]}  Rxd5 {[%clk 0:01:39]} 22. Qxa7 {[%clk 0:01:50]}  Rf5 {[%clk 0:01:34]} 23. Rf1 {[%clk 0:01:46]}  Rxf2 {[%clk 0:01:33]} 24. Rxf2 {[%clk 0:01:45]}  Qxa1+ {[%clk 0:01:33]} 25. Kg2 {[%clk 0:01:46]}  f5 {[%clk 0:01:26]} 26. Qxb6 {[%clk 0:01:39]}  Qe5 {[%clk 0:01:24]} 27. a4 {[%clk 0:01:26]}  Qe4+ {[%clk 0:01:19]} 28. Kg1 {[%clk 0:01:26]}  Rc8 {[%clk 0:01:09]} 29. Qd4 {[%clk 0:01:17]}  Rc1+ {[%clk 0:00:51]} 30. Rf1 {[%clk 0:01:17]}  Rxf1+ {[%clk 0:00:43]} 31. Kxf1 {[%clk 0:01:18]}  Qb1+ {[%clk 0:00:27]} 32. Ke2 {[%clk 0:01:14]}  Qc2+ {[%clk 0:00:20]} 33. Qd2 {[%clk 0:01:11]}  Qxb3 {[%clk 0:00:21]} 34. a5 {[%clk 0:01:11]}  Qb5+ {[%clk 0:00:20]} 35. Kf2 {[%clk 0:01:10]}  Kg7 {[%clk 0:00:17]} 36. Qd4+ {[%clk 0:01:07]}  Kh6 {[%clk 0:00:17]} 37. Qh4+ {[%clk 0:01:07]}  Kg7 {[%clk 0:00:16]} 38. Qe7+ {[%clk 0:01:07]}  Kh6 {[%clk 0:00:16]} 39. Qf8+ {[%clk 0:01:05]}  Kh5 {[%clk 0:00:16]} 40. Qa3 {[%clk 0:01:02]}  Kg4 {[%clk 0:00:09]} 41. a6 {[%clk 0:00:57]}  Qd3 {[%clk 0:00:08]} 42. Qb4+ {[%clk 0:00:55]}  Kh3 {[%clk 0:00:07]} 43. Qh4# {[%clk 0:00:55]} 1-0


[Site "https://www.chess.com"]

[Event "Titled Tuesday Blitz March 08 Early 2022"]
[White "Matlakov, Maxim"]
[Black "Gracia Alvarez, Gerardo Antonio"]
[WhiteFideId "4168003"]
[BlackFideId "5109124"]
[WhiteElo "2669"]
[BlackElo "2139"]
[Result "1-0"]
[Round "01"]
[TimeControl "180+1"]
[Date "2022.03.08"]
[WhiteClock "0:01:43"]
[BlackClock "0:00:58"]

1. e4 {[%clk 0:03:00]}  c5 {[%clk 0:03:00]} 2. Nf3 {[%clk 0:03:00]}  Nc6 {[%clk 0:03:00]} 3. Bb5 {[%clk 0:02:49]}  d6 {[%clk 0:03:00]} 4. O-O {[%clk 0:02:48]}  Bd7 {[%clk 0:03:00]} 5. Re1 {[%clk 0:02:49]}  Nf6 {[%clk 0:02:58]} 6. h3 {[%clk 0:02:47]}  a6 {[%clk 0:02:56]} 7. Bf1 {[%clk 0:02:46]}  g5 {[%clk 0:02:53]} 8. d4 {[%clk 0:02:43]}  cxd4 {[%clk 0:02:39]} 9. Nxd4 {[%clk 0:02:44]}  Rg8 {[%clk 0:02:31]} 10. Nc3 {[%clk 0:02:22]}  Ne5 {[%clk 0:02:27]} 11. Nf5 {[%clk 0:02:14]}  g4 {[%clk 0:02:16]} 12. h4 {[%clk 0:02:14]}  Nxe4 {[%clk 0:01:47]} 13. Nxd6+ {[%clk 0:01:56]}  Nxd6 {[%clk 0:01:28]} 14. Rxe5 {[%clk 0:01:57]}  Bg7 {[%clk 0:01:14]} 15. Qxd6 {[%clk 0:01:54]}  Bxe5 {[%clk 0:01:13]} 16. Qxe5 {[%clk 0:01:55]}  Qb8 {[%clk 0:01:10]} 17. Qe4 {[%clk 0:01:51]}  Qc7 {[%clk 0:01:02]} 18. Nd5 {[%clk 0:01:45]}  Qc5 {[%clk 0:00:58]} 19. Nf6+ {[%clk 0:01:43]} 1-0


[Site "https://www.chess.com"]

[Event "Titled Tuesday Blitz March 08 Early 2022"]
[White "Maung, Maung Kyaw Zaw Hein"]
[Black "Goltseva, Ekaterina"]
[WhiteFideId "13001698"]
[BlackFideId "24173770"]
[WhiteElo "1785"]
[BlackElo "2140"]
[Result "0-1"]
[Round "01"]
[TimeControl "180+1"]
[Date "2022.03.09"]
[WhiteClock "0:01:16"]
[BlackClock "0:00:55"]

1. Nf3 {[%clk 0:03:00]}  Nf6 {[%clk 0:02:58]} 2. c4 {[%clk 0:02:59]}  e6 {[%clk 0:02:58]} 3. Nc3 {[%clk 0:02:58]}  d5 {[%clk 0:02:50]} 4. d4 {[%clk 0:02:58]}  a6 {[%clk 0:02:42]} 5. cxd5 {[%clk 0:02:56]}  exd5 {[%clk 0:02:41]} 6. Bg5 {[%clk 0:02:56]}  c6 {[%clk 0:02:38]} 7. e3 {[%clk 0:02:56]}  Bd6 {[%clk 0:02:39]} 8. Bd3 {[%clk 0:02:53]}  h6 {[%clk 0:02:39]} 9. Bh4 {[%clk 0:02:53]}  O-O {[%clk 0:02:37]} 10. O-O {[%clk 0:02:53]}  Re8 {[%clk 0:02:33]} 11. Qc2 {[%clk 0:02:50]}  Bg4 {[%clk 0:02:30]} 12. Nd2 {[%clk 0:02:38]}  g5 {[%clk 0:02:27]} 13. Bg3 {[%clk 0:02:38]}  Bxg3 {[%clk 0:02:16]} 14. hxg3 {[%clk 0:02:38]}  Nbd7 {[%clk 0:02:17]} 15. f3 {[%clk 0:02:26]}  Be6 {[%clk 0:01:59]} 16. Kf2 {[%clk 0:02:26]}  c5 {[%clk 0:01:51]} 17. Ne2 {[%clk 0:02:13]}  Qe7 {[%clk 0:01:35]} 18. dxc5 {[%clk 0:01:51]}  Bf5 {[%clk 0:01:20]} 19. e4 {[%clk 0:01:22]}  dxe4 {[%clk 0:01:10]} 20. fxe4 {[%clk 0:01:23]}  Nxc5 {[%clk 0:00:56]} 21. exf5 {[%clk 0:01:17]}  Qe3+ {[%clk 0:00:55]} 22. Ke1 {[%clk 0:01:16]}  Nxd3+ {[%clk 0:00:55]} 23. Kd1 {[%clk 0:01:16]}  Qxe2# {[%clk 0:00:55]} 0-1


[Site "https://www.chess.com"]